bitfinex/quotes_ETHUSD_20250827
["timestamp","ask_amount","ask_price","bid_price","bid_amount"]
[1756326117993,0.4393,4535.9,4530.9,2.1344]
[1756326118314,0.86217763,4536.0,4531.0,0.4404]
[1756326118516,0.86217763,4536.0,4530.8,0.02]
[1756326118517,3.4393,4535.8,4530.8,0.02]
[1756326118818,0.86217763,4534.1,4530.8,0.02]
[1756326119002,0.4393,4535.8,4530.8,0.02]
[1756326119003,0.4393,4535.8,4530.9,5.7354]
[1756326119342,3.0,4535.6,4530.8,0.02]
[1756326119613,2.20622517,4532.7,4530.8,0.02]
[1756326119787,35.63908846,4535.5,4530.8,0.02]
[1756326119788,1.694,4532.6,4530.8,0.02]
[1756326119974,0.4393,4532.6,4530.8,0.02]
[1756326120173,3.86217763,4534.0,4530.8,0.02]
[1756326120377,5.296,4534.1,4530.8,0.02]
[1756326120378,0.4393,4533.4,4530.8,0.02]
[1756326120627,0.86217763,4534.4,4530.8,0.02]
[1756326120779,0.4393,4534.2,4530.9,1.695]
[1756326120980,0.4393,4535.8,4530.9,1.695]
[1756326121307,5.297,4537.3,4530.9,1.695]
[1756326121308,1.695,4536.5,4531.1,0.792]
[1756326121513,3.0,4536.1,4531.1,0.792]
[1756326121716,3.0,4535.9,4530.8,0.02]
[1756326121922,0.792,4535.9,4530.8,0.02]
[1756326122076,1.695,4535.8,4530.8,0.4626]
[1756326122611,0.1695,4536.4,4530.9,2.20706702]
[1756326122774,2.20465923,4535.9,4531.0,0.4426]
[1756326122976,1.11409652,4538.7,4531.1,0.792]
[1756326122977,3.658,4535.8,4531.1,0.792]
[1756326123327,0.25580844,4538.3,4530.8,0.02]
[1756326123328,3.0,4535.6,4530.8,0.02]
[1756326123481,2.487,4535.5,4530.9,2.20706702]
[1756326123682,0.688,4535.4,4531.0,0.6653067]
[1756326123881,0.4393,4535.4,4531.0,0.6653067]
[1756326124238,3.63038915,4535.3,4531.0,0.4426]
[1756326124387,3.63038915,4535.3,4530.8,1.715]
[1756326124388,0.19153537,4535.2,4530.8,0.02]
[1756326124590,4.695,4535.1,4530.8,1.715]
[1756326124800,2.20403586,4537.2,4530.8,1.715]
[1756326124801,0.4393,4536.8,4530.9,0.4426]
[1756326125031,0.19164426,4536.7,4531.3,0.792]
[1756326125316,0.63094426,4536.6,4531.4,0.4426]
[1756326125478,0.1104,4532.9,4531.2,0.4426]
[1756326125677,0.4393,4535.3,4531.2,0.4426]
[1756326125880,0.4393,4536.8,4531.2,3.4426]
[1756326126204,0.4393,4536.7,4531.4,0.792]
[1756326126415,1.9,4537.9,4531.5,1.695]
[1756326126416,2.3272136,4536.6,4531.5,1.695]
[1756326126718,2.3272136,4536.6,4531.3,0.4426]
[1756326126719,0.4393,4540.2,4533.1,1.696]
[1756326126890,1.0,4544.2,4533.1,1.696]
[1756326126891,0.4393,4541.8,4534.7,0.792]
[1756326127091,0.4393,4543.3,4539.8,2.20272404]
[1756326127281,0.4393,4543.3,4539.6,2.20279154]
[1756326127282,0.4393,4543.3,4538.6,0.792]
[1756326127484,0.02,4544.8,4540.6,2.20233929]
[1756326127681,0.11409321,4541.8,4540.7,0.4426]
[1756326127918,0.02,4544.8,4541.2,0.792]
[1756326128090,0.02,4544.8,4540.5,5.3]
[1756326128091,0.02,4543.8,4541.7,2.2018187]
[1756326128313,0.02,4543.8,4541.9,0.792]
[1756326128517,0.02,4543.8,4543.6,2.20085754]
[1756326128844,0.02,4545.8,4543.8,3.792]
[1756326129150,3.59751902,4550.1,4545.9,0.792]
[1756326129443,0.02,4550.8,4548.6,2.19843069]
[1756326129602,0.02,4550.8,4550.7,2.19746412]
[1756326129801,3.59751902,4552.9,4550.5,1.695]
[1756326130002,3.59751902,4552.9,4549.8,5.298]
[1756326130003,3.59751902,4552.9,4550.7,0.792]
[1756326130305,3.59751902,4552.9,4550.8,0.4426]
[1756326130511,3.22591514,4553.4,4552.2,0.792]
[1756326130773,6.23439453,4554.9,4552.4,3.0]
[1756326130774,10.90010322,4554.9,4552.4,3.0]
[1756326130971,10.90010322,4554.9,4550.7,2.49037721]
[1756326130972,10.90010322,4554.9,4552.0,1.695]
[1756326131186,10.90010322,4554.9,4552.1,1.694]
[1756326131480,1e-08,4553.8,4553.6,2.19604145]
[1756326131789,1e-08,4553.8,4553.7,4.694]
[1756326132086,1e-08,4554.8,4554.7,2.19553428]
[1756326132303,4.66570869,4557.1,4556.7,2.19457063]
[1756326132780,0.4593,4556.8,4553.0,1.693]
[1756326132978,0.4593,4556.8,4552.9,0.792]
[1756326132979,0.4593,4556.8,4553.1,1.0405]
[1756326133164,0.46128249,4556.7,4551.7,1.693]
[1756326133495,0.02198249,4556.7,4551.7,1.693]
[1756326133655,0.4393,4556.6,4551.8,5.19693308]
[1756326133853,0.4393,4556.6,4551.7,1.693]
[1756326133854,0.81398249,4556.7,4555.2,2.1952543]
[1756326134155,0.02198249,4556.7,4554.4,1.693]
[1756326134352,0.02198249,4556.7,4554.0,2.19585594]
[1756326134353,0.4393,4556.6,4554.0,2.19587092]
[1756326134568,0.02198249,4556.7,4554.1,0.792]
[1756326134744,0.02198249,4556.7,4552.9,1.692]
[1756326134945,0.02198249,4556.7,4554.4,0.792]
[1756326135150,0.02198249,4556.7,4556.5,2.19462496]
[1756326135345,0.02,4558.8,4557.7,2.19408912]
[1756326135743,6.347,4563.0,4557.7,2.30368912]
[1756326135744,0.4393,4562.3,4557.7,2.30368912]
[1756326135905,0.4393,4562.3,4556.6,6.981]
[1756326135906,0.02,4562.8,4557.8,0.23036891]
[1756326136108,0.4393,4560.6,4559.7,0.1096]
[1756326136309,3.0,4559.7,4552.9,2.63322125]
[1756326136606,3.0,4559.7,4551.7,2.19694316]
[1756326136607,0.792,4559.4,4555.6,2.19509362]
[1756326136763,1.712,4559.8,4557.4,2.1941899]
[1756326136764,0.1096,4557.6,4557.4,2.1941899]
[1756326137107,0.4414,4559.6,4556.4,3.0]
[1756326137253,0.02,4559.8,4556.7,0.792]
[1756326137453,0.02,4559.8,4553.6,1.08105094]
[1756326137693,0.02,4559.8,4553.9,1.691]
[1756326137994,0.02,4559.8,4559.7,2.19312674]
[1756326138199,0.02,4559.8,4559.7,1.691]
[1756326138408,0.02,4559.8,4559.7,2.29873743]
[1756326138409,1e-08,4559.8,4559.7,2.29873743]
[1756326138554,0.44140001,4559.8,4553.3,1.00017005]
[1756326138754,0.4414,4559.7,4554.2,1.691]
[1756326138984,1e-08,4559.8,4554.2,1.691]
[1756326138985,1e-08,4559.8,4559.3,2.19331107]
[1756326139213,1e-08,4559.8,4554.3,1.70091043]
[1756326139214,1e-08,4559.8,4558.4,1.69]
[1756326139363,1e-08,4559.8,4559.7,2.19312674]
[1756326139889,1e-08,4559.8,4559.7,3.0]
[1756326140053,1e-08,4559.8,4558.5,1.69]
[1756326140598,1e-08,4559.8,4558.7,3.0]
[1756326140756,1e-08,4559.8,4558.5,1.69]
[1756326140757,1e-08,4559.8,4559.6,2.19313801]
[1756326141091,1e-08,4559.8,4559.1,3.0]
[1756326141092,0.4414,4567.3,4563.7,2.1912045]
[1756326141275,0.4414,4567.3,4563.7,14.231]
[1756326141488,0.4614,4566.8,4562.4,6.337]
[1756326141655,0.4414,4565.6,4562.6,0.792]
[1756326141857,0.4414,4565.6,4562.5,1.689]
[1756326142062,0.4414,4565.6,4562.7,2.19164409]
[1756326142357,0.4414,4565.6,4562.5,1.689]
[1756326142562,1.689,4566.6,4561.8,1.689]
[1756326142563,0.4414,4564.7,4561.8,1.689]
[1756326142862,0.4414,4566.2,4564.2,2.19093143]
[1756326143176,0.4414,4566.2,4563.2,0.792]
[1756326143420,0.4414,4566.2,4563.3,4.689]
[1756326143638,0.02,4566.8,4564.6,2.19076283]
[1756326143785,0.02,4566.8,4562.5,0.792]
[1756326143786,0.02,4566.8,4563.5,2.1912971]
[1756326144148,1.688,4566.7,4563.8,1.688]
[1756326144428,0.4414,4564.7,4561.7,1.688]
[1756326144601,1.688,4566.7,4561.7,1.688]
[1756326144602,0.4414,4566.0,4561.8,2.4558]
[1756326144799,0.4414,4565.1,4561.8,2.4558]
[1756326145005,0.4414,4564.7,4561.0,1.688]
[1756326145209,0.792,4564.5,4559.6,1.688]
[1756326145446,0.792,4564.5,4557.1,1.688]
[1756326145447,4.38192892,4564.2,4557.1,1.688]
[1756326145743,4.38192892,4564.2,4555.3,5.275]
[1756326145744,1.0,4564.0,4555.9,1.688]
[1756326145893,0.792,4562.3,4556.2,2.19481146]
[1756326146096,0.792,4562.3,4556.0,0.1688]
[1756326146097,0.4414,4562.2,4556.0,0.1688]
[1756326146301,2.19226131,4561.5,4554.7,1.688]
[1756326146550,0.792,4561.1,4554.9,2.19543788]
[1756326146694,0.4414,4561.4,4553.8,0.02]
[1756326146695,0.792,4560.9,4553.9,1.972]
[1756326147039,0.4414,4560.8,4553.9,1.972]
[1756326147239,0.4414,4560.8,4559.8,0.02]
[1756326147532,7.349,4564.8,4559.8,0.02]
[1756326147533,0.4414,4563.2,4559.8,0.02]
[1756326147733,1.687,4564.4,4559.8,0.02]
[1756326147734,0.4414,4561.9,4559.8,0.02]
[1756326147893,0.4414,4561.9,4558.7,1.687]
[1756326148094,0.4414,4561.9,4558.9,0.792]
[1756326148336,0.4414,4561.8,4557.8,1.687]
[1756326148633,0.4414,4561.7,4557.8,0.1687]
[1756326148836,0.4414,4561.7,4556.9,1.687]
[1756326149042,0.4414,4561.6,4556.9,1.687]
[1756326149402,0.4414,4561.5,4556.9,1.687]
[1756326149602,0.7349,4564.7,4560.0,0.792]
[1756326149603,0.4414,4563.5,4560.0,0.792]
[1756326149805,0.4414,4563.5,4560.3,2.19283819]
[1756326150040,1.687,4565.1,4560.4,1.687]
[1756326150041,2.19075874,4564.7,4560.4,1.687]
[1756326150207,2.19075874,4564.7,4559.9,1.687]
[1756326150208,0.4414,4563.2,4559.9,1.687]
[1756326150539,5.274,4565.2,4559.9,1.687]
[1756326150540,0.4414,4564.3,4559.9,1.687]
[1756326150742,5.274,4565.2,4560.0,1.687]
[1756326150743,0.4414,4563.2,4560.0,1.687]
[1756326150947,6.328,4566.9,4560.0,1.687]
[1756326150948,0.4614,4565.8,4560.4,0.792]
[1756326151109,0.4414,4564.1,4560.6,3.0]
[1756326151475,0.4414,4563.4,4560.9,0.792]
[1756326151610,0.02,4565.8,4561.7,0.792]
[1756326151956,0.02,4565.8,4561.0,8.273]
[1756326151957,0.02,4565.8,4564.7,2.19072447]
[1756326152111,0.02,4565.8,4565.7,2.19024465]
[1756326152325,0.02,4565.8,4564.8,3.0]
[1756326152326,0.04,4567.8,4566.6,0.792]
[1756326152514,0.04,4567.8,4564.7,7.17807245]
[1756326152515,0.04,4567.8,4567.6,2.18930822]
[1756326152712,0.04,4567.8,4567.7,6.117]
[1756326152935,0.02,4568.8,4568.7,2.98080644]
[1756326152936,0.00320356,4568.8,4568.7,2.98080644]
[1756326153141,0.00320356,4568.8,4568.7,20.22788708]
[1756326153363,5.292,4574.8,4569.7,0.792]
[1756326153685,1.686,4573.5,4569.8,0.14]
[1756326153962,1.686,4573.5,4568.7,0.29808064]
[1756326153963,5.292,4574.8,4569.9,1.43]
[1756326154164,0.4414,4571.4,4569.3,0.792]
[1756326154322,5.292,4574.8,4570.6,2.18785842]
[1756326154323,0.4414,4573.6,4570.6,2.18785842]
[1756326154528,0.4414,4573.6,4570.7,6.116]
[1756326154757,0.4414,4571.9,4569.7,1.686]
[1756326154970,0.4414,4571.9,4569.0,1.686]
[1756326155130,1.706,4574.8,4570.7,0.792]
[1756326155131,0.4414,4573.4,4570.7,0.792]
[1756326155331,1.706,4574.8,4570.7,0.792]
[1756326155332,0.02,4574.8,4571.1,0.792]
[1756326155640,0.02,4574.8,4573.7,5.97841362]
[1756326155835,0.02,4574.8,4573.7,6.115]
[1756326156038,0.02,4575.8,4573.8,0.792]
[1756326156266,0.02,4575.8,4573.8,3.0]
[1756326156449,0.02,4575.8,4573.7,1.685]
[1756326156450,0.02,4575.8,4575.2,0.792]
[1756326156650,0.02,4575.8,4573.7,1.685]
[1756326157071,0.02,4575.8,4570.7,3.0]
[1756326157072,0.1096,4574.3,4570.7,3.0]
[1756326157367,0.02,4575.8,4570.7,3.0]
[1756326157368,0.4414,4575.6,4572.3,0.792]
[1756326157663,0.4414,4575.6,4571.6,3.0]
[1756326157664,0.4414,4575.5,4571.6,3.0]
[1756326157865,0.4414,4575.5,4571.8,0.792]
[1756326158075,0.4414,4575.5,4571.1,7.242]
[1756326158076,0.4414,4575.5,4571.9,3.0]
[1756326158369,0.4414,4575.5,4572.1,3.792]
[1756326158582,0.02,4575.8,4572.3,3.0]
[1756326158741,0.02,4575.8,4575.4,0.792]
[1756326158944,0.02,4575.8,4572.5,3.0]
[1756326158945,0.4414,4575.7,4572.2,3.45880179]
[1756326159147,0.4414,4575.7,4571.9,1.684]
[1756326159148,3.4414,4575.6,4571.9,1.684]
[1756326159352,1.2334,4575.5,4570.0,1.684]
[1756326159537,0.792,4573.4,4570.1,7.238]
[1756326159732,0.4414,4573.3,4570.2,0.8922]
[1756326159975,0.4614,4575.8,4570.3,7.238]
[1756326160143,0.02,4575.8,4571.3,1.684]
[1756326160343,0.02,4575.8,4571.5,3.0]
[1756326160544,0.4414,4575.7,4571.3,1.684]
[1756326160777,0.792,4575.5,4571.4,0.1684]
[1756326161070,2.18619281,4574.2,4570.6,7.237]
[1756326161296,2.18681974,4572.9,4570.2,1.683]
[1756326161489,2.18631802,4573.9,4570.2,1.683]
[1756326161490,0.4414,4572.8,4570.2,1.683]
[1756326161790,0.792,4572.7,4569.1,7.235]
[1756326162089,5.261,4573.5,4568.8,1.703]
[1756326162090,3.792,4572.5,4568.8,1.703]
[1756326162377,0.4414,4572.6,4569.0,2.18866272]
[1756326162560,0.4414,4572.6,4568.9,3.1703]
[1756326162767,3.0,4574.8,4568.9,0.1703]
[1756326162998,0.792,4572.3,4568.9,0.1703]
[1756326163281,2.18651361,4573.5,4568.9,0.1703]
[1756326163282,0.4414,4572.2,4571.0,2.18768856]
[1756326163479,0.792,4572.1,4570.2,1.683]
[1756326163694,0.4414,4572.2,4569.5,1.683]
[1756326163844,0.4414,4572.2,4569.6,0.19706624]
[1756326164040,0.4414,4573.3,4569.7,3.0]
[1756326164282,0.4414,4573.2,4569.8,3.17331823]
[1756326164489,0.792,4573.1,4569.9,2.38526338]
[1756326164655,0.792,4572.9,4570.0,0.19707185]
[1756326164855,3.0,4572.7,4569.1,0.19748166]
[1756326165057,3.0,4572.7,4567.8,0.5824542]
[1756326165058,2.18727443,4571.9,4567.8,0.02]
[1756326165267,3.0,4571.5,4567.8,0.02]
[1756326165509,2.18770509,4571.0,4567.8,0.02]
[1756326165708,0.792,4570.5,4565.9,1.53503138]
[1756326165869,0.792,4569.8,4564.8,1.15086214]
[1756326166202,13.4136,4570.4,4564.8,1.15086214]
[1756326166203,9.50927831,4569.7,4564.8,0.02]
[1756326166352,0.792,4566.6,4564.8,0.02]
[1756326166805,0.447,4566.5,4564.8,0.02]
[1756326166947,0.447,4567.8,4565.6,2.19029003]
[1756326167149,0.447,4567.8,4565.7,1.683]
[1756326167517,0.447,4567.8,4564.8,0.02]
[1756326167518,0.792,4567.7,4565.0,1.683]
[1756326167668,0.447,4569.7,4565.0,1.683]
[1756326167881,0.447,4569.7,4565.2,3.0]
[1756326168073,5.083,4572.9,4565.1,7.5101]
[1756326168074,0.447,4571.9,4568.3,3.0]
[1756326168252,0.447,4571.9,4568.4,1.983]
[1756326168522,1.683,4572.0,4567.0,2.18959414]
[1756326168720,3.447,4571.8,4567.3,1.53503138]
[1756326168961,3.0,4571.6,4566.6,1.53503138]
[1756326169143,3.0,4571.6,4566.1,1.92340572]
[1756326169144,0.447,4571.5,4566.8,1.53503138]
[1756326169344,2.13,4571.4,4567.4,1.53503138]
[1756326169538,0.66,4571.3,4567.4,1.53503138]
[1756326169773,0.447,4571.2,4567.5,1.53503138]
[1756326169935,0.792,4569.1,4567.0,1.53503138]
[1756326170125,0.792,4569.1,4567.1,1.53503138]
[1756326170126,0.792,4568.9,4567.1,1.53503138]
[1756326170331,3.0,4568.7,4565.8,2.56665886]
[1756326170606,0.19827468,4568.6,4567.8,0.02]
[1756326170726,1.09466817,4572.5,4567.9,9.3632]
[1756326171067,2.18780297,4570.8,4568.0,0.4472]
[1756326171227,1.683,4570.8,4567.8,0.02]
[1756326171426,1.8513,4570.8,4567.8,0.02]
[1756326171654,3.0,4570.7,4567.8,0.02]
[1756326172078,2.18861215,4569.2,4567.8,0.02]
[1756326172284,1.683,4570.8,4567.8,0.02]
[1756326172484,7.44804826,4572.4,4567.8,1.703]
[1756326172485,1.683,4572.1,4567.8,1.703]
[1756326172789,2.18771946,4571.0,4568.0,5.18914185]
[1756326172956,2.18722659,4572.0,4567.9,0.4472]
[1756326172957,0.1683,4572.0,4567.9,0.4472]
[1756326173290,5.261,4573.5,4568.1,3.0]
[1756326173482,1.683,4574.6,4568.2,1.683]
[1756326173781,2.18667172,4573.2,4568.9,3.0]
[1756326174077,2.18667172,4573.2,4568.3,7.233]
[1756326174078,1.683,4573.7,4568.4,10.233]
[1756326174281,2.18713577,4572.2,4568.9,0.4472]
[1756326174481,2.18757259,4573.4,4568.9,0.4472]
[1756326174666,3.0,4573.3,4568.9,0.4472]
[1756326174882,0.001,4573.4,4569.0,2.18866272]
[1756326175063,2.18717502,4572.2,4569.0,3.0]
[1756326175383,2.18737828,4571.7,4569.8,2.18823659]
[1756326175686,1.683,4573.3,4569.9,0.4472]
[1756326175993,2.18672813,4573.1,4568.6,0.4472]
[1756326176173,3.19891014,4573.0,4568.6,0.4472]
[1756326176351,0.001,4573.4,4568.7,3.0]
[1756326176550,0.001,4573.4,4568.8,3.64472]
[1756326176746,0.001,4573.4,4571.7,2.18735854]
[1756326176981,0.001,4573.4,4568.9,3.0]
[1756326176982,0.001,4573.4,4571.3,1.683]
[1756326177186,7.4450591,4576.6,4571.5,3.0]
[1756326177187,0.19908431,4576.0,4571.5,3.0]
[1756326177498,0.19908431,4576.0,4571.4,8.916]
[1756326177499,0.02,4577.8,4574.7,2.18593568]
[1756326177796,2.18456274,4577.6,4573.7,1.683]
[1756326177960,2.184826,4577.1,4573.8,1.8513]
[1756326178165,0.1096,4574.6,4573.9,0.1096]
[1756326178562,0.19966081,4575.7,4572.3,1.683]
[1756326178884,0.19966081,4575.7,4571.4,7.232]
[1756326178885,0.22236081,4575.6,4570.8,1.683]
[1756326179085,0.22236081,4575.6,4570.9,1.683]
[1756326179086,0.19966081,4575.5,4570.9,1.683]
[1756326179291,3.0,4573.6,4570.9,1.683]
[1756326179587,2.38617284,4573.5,4570.9,0.1683]
[1756326179772,1.682,4573.7,4570.6,0.4472]
[1756326179773,0.19966081,4573.4,4570.6,0.4472]
[1756326180097,5.18788984,4570.7,4570.5,7.0]
[1756326180265,5.18788984,4570.7,4566.9,2.1896291]
[1756326180266,10.14066081,4570.6,4564.7,2.19070679]
[1756326180454,10.14066081,4570.6,4564.2,5.259]
[1756326180455,2.1891474,4568.0,4564.2,0.4472]
[1756326180659,3.0,4567.8,4563.2,0.4472]
[1756326180851,3.0,4567.8,4561.5,5.258]
[1756326181094,6.94,4567.9,4561.7,0.4472]
[1756326181095,2.18928563,4567.7,4561.7,0.4472]
[1756326181292,3.0,4567.8,4562.6,0.4472]
[1756326181590,5.297,4567.6,4564.0,0.4472]
[1756326181807,2.18987808,4566.5,4564.0,0.4472]
[1756326181956,2.18958861,4567.1,4564.9,0.4472]
[1756326182282,2.18987396,4566.5,4565.8,0.02]
[1756326182483,1.683,4567.7,4565.8,0.02]
[1756326182798,2.19011704,4566.0,4565.8,0.02]
[1756326183012,3.0,4568.8,4565.8,0.02]
[1756326183296,2.19013833,4566.0,4565.8,0.02]
[1756326183494,3.0,4567.6,4565.8,0.02]
[1756326183667,2.18947988,4567.3,4565.8,0.02]
[1756326183871,3.0,4567.6,4567.1,0.001]
[1756326184069,2.297,4570.4,4567.1,0.001]
[1756326184070,1.683,4569.0,4567.1,0.001]
[1756326184466,2.1895078,4567.3,4567.1,0.001]
[1756326184767,1.683,4567.2,4567.1,0.001]
[1756326185312,1.683,4568.2,4567.1,0.001]
[1756326185620,1.07643859,4572.8,4567.1,0.001]
[1756326185621,0.20084677,4568.1,4567.1,0.001]
[1756326185908,0.20084677,4568.0,4567.1,0.001]
[1756326186068,0.20092187,4567.9,4567.8,2.1892377]
[1756326186260,1.683,4571.3,4567.8,0.4672]
[1756326186459,2.18765723,4571.1,4567.8,0.02]
[1756326186700,0.1988,4571.2,4567.8,0.02]
[1756326186919,3.0,4571.0,4567.8,0.02]
[1756326187083,3.51868,4570.9,4567.8,0.02]
[1756326187260,2.18780082,4570.8,4567.8,0.02]
[1756326187464,3.0,4570.7,4567.8,0.02]
[1756326187759,3.0,4570.7,4566.1,0.001]
[1756326187760,2.19000481,4566.2,4566.1,0.001]
[1756326187960,2.18975695,4566.8,4566.1,0.001]
[1756326187961,2.18973528,4566.8,4566.1,0.001]
[1756326188160,9.42318169,4568.0,4566.1,0.001]
[1756326188408,0.02,4568.8,4566.1,0.001]
[1756326188693,0.02,4568.8,4566.2,5.1302]
[1756326188900,0.02736008,4568.7,4566.3,0.4472]
[1756326189117,0.02,4568.8,4566.5,2.18983807]
[1756326189269,0.02,4568.8,4566.3,3.4472]
[1756326189270,0.02736008,4568.7,4566.3,0.4472]
[1756326189477,0.02736008,4568.7,4566.1,0.001]
[1756326189478,0.792,4568.7,4566.1,0.001]
[1756326189774,9.42385435,4568.6,4566.1,0.001]
[1756326189986,0.792,4568.0,4566.1,0.001]
[1756326190293,2.18962577,4567.0,4566.1,0.001]
[1756326190490,0.792,4566.8,4566.1,0.001]
[1756326190693,0.22826057,4566.7,4566.1,0.001]
[1756326190897,0.20088851,4566.6,4566.1,0.001]
[1756326191055,0.792,4567.2,4566.1,0.001]
[1756326191056,0.22818983,4566.5,4566.1,0.001]
[1756326191261,0.02737326,4566.5,4566.1,0.001]
[1756326191462,2.98200481,4566.2,4566.1,0.001]
[1756326191656,4.02017465,4566.2,4566.1,0.001]
[1756326191862,0.22817465,4566.2,4566.1,0.001]
[1756326192063,0.02737026,4567.0,4566.1,0.4482]
[1756326192263,0.20089871,4566.9,4566.1,0.001]
[1756326192497,3.792,4566.2,4566.1,0.001]
[1756326192662,1.02027377,4566.2,4566.1,0.001]
[1756326192860,0.20089871,4566.2,4566.1,0.001]
[1756326193409,0.20089871,4566.2,4559.8,0.02]
[1756326193410,0.792,4565.8,4559.8,0.02]
[1756326193697,4.09254691,4564.7,4559.8,0.02]
[1756326193859,2.19303054,4559.9,4559.8,0.02]
[1756326194064,0.9925505,4559.9,4559.8,0.02]
[1756326194279,0.2005505,4559.9,4559.8,0.02]
[1756326194530,0.2005505,4559.9,4557.2,0.004]
[1756326194531,0.792,4559.8,4557.2,0.004]
[1756326194661,0.792,4559.6,4557.2,0.004]
[1756326194861,0.792,4559.4,4557.4,2.19421664]
[1756326195083,0.22725284,4559.3,4557.5,0.4472]
[1756326195362,3.0,4562.9,4558.0,3.0]
[1756326195597,3.0,4562.7,4558.2,3.0]
[1756326195764,0.02687166,4562.6,4558.3,0.469138]
[1756326195980,0.4134,4566.1,4558.5,3.0]
[1756326196182,1.684,4566.3,4559.3,4.38663828]
[1756326196183,0.02687166,4565.2,4559.3,4.38663828]
[1756326196385,0.02687166,4566.2,4559.4,0.46913271]
[1756326196587,0.4134,4566.1,4559.4,0.46913271]
[1756326196787,0.02687166,4566.0,4559.4,0.46913271]
[1756326197126,2.19121031,4563.7,4559.4,0.46913271]
[1756326197424,0.792,4563.5,4559.4,0.4472]
[1756326197583,5.265,4563.9,4559.4,0.4472]
[1756326197584,0.02687166,4563.4,4559.5,3.0]
[1756326197785,0.02687166,4565.3,4559.6,0.46733174]
[1756326198017,1.685,4566.8,4559.6,0.46733174]
[1756326198018,0.19928329,4565.2,4559.8,3.0]
[1756326198329,0.02,4562.8,4560.0,3.0]
[1756326198565,0.02,4564.8,4560.6,2.19269394]
[1756326198834,0.22621974,4564.7,4563.1,0.1096]
[1756326199032,0.792,4564.3,4561.4,0.4454]
[1756326199240,0.22621974,4564.2,4561.5,3.02192261]
[1756326199444,0.02,4564.8,4561.7,3.0]
[1756326199775,0.02,4564.8,4563.8,2.19111784]
[1756326199904,0.02,4564.8,4562.8,1.685]
[1756326200237,0.02,4564.8,4564.7,2.19072447]
[1756326200423,0.02687166,4568.2,4564.7,2.47277958]
[1756326200609,2.18892755,4568.5,4561.6,0.34673226]
[1756326200610,0.22620172,4567.0,4564.1,3.0]
[1756326200810,4.08063006,4566.9,4562.0,3.0]
[1756326201038,0.22620172,4566.8,4562.1,0.46731972]
[1756326201243,0.19933006,4566.7,4562.1,0.46731972]
[1756326201412,0.22620172,4566.6,4562.3,3.0]
[1756326201602,0.19933006,4566.5,4562.4,0.81405025]
[1756326201805,0.17,4567.1,4562.6,3.0]
[1756326201806,2.19044213,4565.3,4562.6,3.0]
[1756326202003,0.19933006,4565.2,4562.8,3.0]
[1756326202235,0.19933006,4565.1,4562.9,9.39231588]
[1756326202448,0.17,4567.1,4563.0,8.7114]
[1756326202657,0.17,4567.1,4564.7,2.19068974]
[1756326202852,0.17,4567.1,4563.1,1.78555492]
[1756326202853,0.17,4567.1,4564.9,5.19062849]
[1756326203053,0.17,4567.1,4564.9,3.0]
[1756326203218,0.001,4565.2,4564.9,2.19062383]
[1756326203568,0.001,4565.2,4563.6,0.4454]
[1756326204065,0.001,4565.2,4562.5,0.4454]
[1756326204230,0.001,4565.2,4562.6,0.02191732]
[1756326204421,0.02,4562.8,4562.7,0.4454]
[1756326204616,0.02,4563.8,4562.7,0.4454]
[1756326204617,0.02,4563.8,4563.6,2.19121406]
[1756326204830,0.02,4563.8,4563.6,5.19123651]
[1756326205056,0.001,4565.2,4563.8,2.19115649]
[1756326205265,0.001,4565.2,4563.9,2.21299531]
[1756326205553,0.17,4567.1,4564.0,3.0]
[1756326205750,0.17,4567.1,4563.9,0.02191108]
[1756326205751,0.02687166,4567.0,4564.1,0.46731012]
[1756326206076,3.0,4566.8,4564.1,0.46731012]
[1756326206374,0.17,4567.1,4566.9,2.18963262]
[1756326206667,2.20828974,4569.8,4567.1,2.18957325]
[1756326206668,0.02687166,4569.6,4567.1,2.18957325]
[1756326206819,0.04687166,4569.8,4567.0,4.31999762]
[1756326207159,0.02,4569.8,4569.7,2.18832746]
[1756326207458,0.2204329,4569.8,4569.7,1.68941337]
[1756326207617,0.02,4570.8,4570.7,2.18784868]
[1756326207817,3.71973274,4572.5,4569.7,1.15506559]
[1756326207818,0.02687166,4572.4,4569.7,1.13318232]
[1756326208130,5.4306044,4571.7,4568.8,2.18875853]
[1756326208452,5.4306044,4571.7,4567.3,1.684]
[1756326208453,3.4613,4571.6,4567.3,1.684]
[1756326208666,0.02687166,4571.5,4567.4,3.02189429]
[1756326208820,0.02687166,4571.5,4567.3,3.87346724]
[1756326208821,3.71973274,4570.5,4567.3,1.684]
[1756326209015,3.0,4570.2,4566.1,2.1294]
[1756326209229,0.1096,4568.6,4568.0,0.1096]
[1756326209468,0.02687166,4570.0,4568.0,2.18913706]
[1756326209620,0.02687166,4570.0,4566.0,3.4454]
[1756326209836,3.792,4569.8,4566.0,8.923]
[1756326210033,2.64956404,4569.9,4564.9,0.4454]
[1756326210034,0.792,4569.5,4564.9,0.4454]